fUSD/lending_fUSD_20241219
["ID","MTS","AMOUNT","RATE_DAILY","PERIOD"]
[346004674,1734619857800,-500.0,0.00023835,4]
[346004675,1734619857809,-500.0,0.00023835,4]
[346004676,1734619857820,-500.0,0.00023835,4]
[346004677,1734619857830,-500.0,0.00023835,4]
[346004678,1734619857840,-500.0,0.00023835,4]
[346004679,1734619857850,-568.48,0.00023835,4]
[346004680,1734619857859,-412.67,0.00023835,4]
[346004681,1734619857869,-500.0,0.00023835,4]
[346004682,1734619857878,-642.71,0.00023835,4]
[346004683,1734619857887,-533.56,0.00023835,4]
[346004684,1734619857896,-500.0,0.00023835,4]
[346004685,1734619857907,-722.07,0.00023835,4]
[346004686,1734619857916,-500.0,0.00023835,4]
[346004687,1734619857926,-508.2,0.00023835,4]
[346004688,1734619857935,-500.0,0.00023835,4]
[346004689,1734619857944,-500.0,0.00023835,4]
[346004690,1734619858267,-500.0,0.00023835,4]
[346004691,1734619858288,-500.0,0.00023835,4]
[346004692,1734619858299,-744.53,0.00023835,4]
[346004693,1734619858308,-500.0,0.00023835,4]
[346004694,1734619858317,-500.0,0.00023835,4]
[346004695,1734619858326,-545.11000297,0.00023835,4]
[346004696,1734619858335,-500.0,0.00023835,4]
[346004697,1734619858344,-402.47929835,0.00023835,4]
[346004698,1734619858352,-619.40008384,0.00023835,4]
[346004699,1734619858361,-500.0,0.00023835,4]
[346004700,1734619858370,-868.35,0.00023835,4]
[346004701,1734619858379,-500.0,0.00023835,4]
[346004702,1734619858388,-500.0,0.00023835,4]
[346004703,1734619858397,-500.0,0.00023835,4]
[346004704,1734619858406,-554.96,0.00023835,4]
[346004705,1734619858414,-500.0,0.00023835,4]
[346004706,1734619858423,-783.95,0.00023835,4]
[346004707,1734619858432,-500.0,0.00023835,4]
[346004708,1734619858442,-500.0,0.00023835,4]
[346004709,1734619858453,-500.0,0.00023835,4]
[346004710,1734619858463,-527.81,0.00023835,4]
[346004711,1734619858472,-500.0,0.00023835,4]
[346004712,1734619858483,-500.0,0.00023835,4]
[346004713,1734619858492,-500.0,0.00023835,4]
[346004714,1734619858501,-500.0,0.00023835,4]
[346004715,1734619858511,-500.0,0.00023835,4]
[346004716,1734619858522,-500.0,0.00023835,4]
[346004717,1734619858536,-500.0,0.00023835,4]
[346004718,1734619858546,-500.0,0.00023835,4]
[346004719,1734619858555,-500.0,0.00023835,4]
[346004720,1734619858564,-500.0,0.00023835,4]
[346004721,1734619858574,-687.78,0.00023835,4]
[346004722,1734619858583,-500.0,0.00023835,4]
[346004723,1734619858593,-238.43304745,0.00023835,4]
[346004724,1734619858603,-500.0,0.00023835,4]
[346004725,1734619858612,-500.0,0.00023835,4]
[346004726,1734619858622,-209.61650135,0.00023835,4]
[346004727,1734619858631,-533.38,0.00023835,4]
[346004728,1734619858640,-500.0,0.00023835,4]
[346004729,1734619858649,-500.0,0.00023835,4]
[346004730,1734619858659,-500.0,0.00023835,4]
[346004731,1734619858669,-500.0,0.00023835,4]
[346004732,1734619858678,-500.0,0.00023835,4]
[346004733,1734619858688,-500.0,0.00023835,4]
[346004734,1734619858698,-500.0,0.00023835,4]
[346004735,1734619858707,-500.0,0.00023835,4]
[346004736,1734619858717,-500.0,0.00023835,4]
[346004737,1734619858727,-500.0,0.00023835,4]
[346004738,1734619858736,-1110.6,0.00023835,4]
[346004739,1734619858745,-500.0,0.00023835,4]
[346004740,1734619858755,-500.0,0.00023835,4]
[346004741,1734619858765,-500.0,0.00023835,4]
[346004742,1734619858775,-620.85,0.00023835,4]
[346004743,1734619858784,-781.0,0.00023835,4]
[346004744,1734619858793,-941.86,0.00023835,4]
[346004745,1734619858803,-857.05,0.00023835,4]
[346004746,1734619858812,-500.0,0.00023835,4]
[346004747,1734619858821,-500.0,0.00023835,4]
[346004748,1734619858831,-749.03,0.00023835,4]
[346004749,1734619858840,-289.88076943,0.00023835,4]
[346004750,1734619858853,-1379.54,0.00023835,4]
[346004751,1734619858864,-582.13,0.00023835,4]
[346004752,1734619858874,-500.0,0.00023835,4]
[346004753,1734619858884,-664.17,0.00023835,4]
[346004754,1734619858894,-500.0,0.00023835,4]
[346004755,1734619858903,-1288.35,0.00023835,4]
[346004756,1734619858912,-500.0,0.00023835,4]
[346004757,1734619858922,-712.26,0.00023835,4]
[346004758,1734619858931,-500.0,0.00023835,4]
[346004759,1734619858940,-500.0,0.00023835,4]
[346004760,1734619858949,-500.0,0.00023835,4]
[346004761,1734619858959,-500.0,0.00023835,4]
[346004762,1734619858967,-500.0,0.00023835,4]
[346004763,1734619858977,-1155.02,0.00023835,4]
[346004764,1734619858986,-526.64,0.00023835,4]
[346004765,1734619858995,-692.32,0.00023835,4]
[346004766,1734619859005,-1941.22,0.00023835,4]
[346004767,1734619859014,-1443.45,0.00023835,4]
[346004768,1734619859023,-150.0,0.00023835,2]
[346004769,1734619859035,-500.0,0.00023835,4]
[346004770,1734619859044,-500.0,0.00023835,4]
[346004771,1734619859053,-4671.05,0.00023835,4]
[346004772,1734619859062,-666.18,0.00023835,4]
[346004773,1734619859071,-500.0,0.00023835,4]
[346004774,1734619859080,-500.0,0.00023835,4]
[346004775,1734619859089,-500.0,0.00023835,4]
[346004776,1734619859098,-500.0,0.00023835,4]
[346004777,1734619859107,-507.17,0.00023835,4]
[346004778,1734619859116,-500.0,0.00023835,4]
[346004779,1734619859125,-500.0,0.00023835,4]
[346004780,1734619859134,-500.0,0.00023835,4]
[346004781,1734619859143,-500.0,0.00023835,4]
[346004782,1734619859152,-638.36,0.00023835,4]
[346004783,1734619859161,-500.0,0.00023835,4]
[346004784,1734619859170,-500.0,0.00023835,4]
[346004785,1734619859179,-613.45,0.00023835,4]
[346004786,1734619859189,-500.0,0.00023835,4]
[346004787,1734619859198,-583.42,0.00023835,4]
[346004788,1734619859207,-500.0,0.00023835,4]
[346004789,1734619859216,-1342.63,0.00023835,4]
[346004790,1734619859224,-925.35,0.00023835,4]
[346004791,1734619859233,-500.0,0.00023835,4]
[346004792,1734619859242,-552.75,0.00023835,4]
[346004793,1734619859251,-500.0,0.00023835,4]
[346004794,1734619859260,-592.13,0.00023835,4]
[346004795,1734619859269,-500.0,0.00023835,4]
[346004796,1734619859278,-298.72,0.00023835,4]
[346004797,1734619859292,-2339.55,0.00023835,4]
[346004798,1734619859301,-500.0,0.00023835,4]
[346004799,1734619859311,-240.47,0.00023835,4]
[346004800,1734619859321,-500.0,0.00023835,4]
[346004801,1734619859331,-1038.07,0.00023835,4]
[346004802,1734619859340,-1573.39,0.00023835,4]
[346004803,1734619859349,-500.0,0.00023835,4]
[346004804,1734619859358,-500.0,0.00023835,4]
[346004805,1734619859368,-500.0,0.00023835,4]
[346004806,1734619859377,-500.0,0.00023835,4]
[346004807,1734619859387,-965.55,0.00023835,4]
[346004808,1734619859397,-1681.79,0.00023835,4]
[346004809,1734619859406,-500.0,0.00023835,4]
[346004810,1734619859415,-1067.32,0.00023835,4]
[346004811,1734619859425,-1437.18,0.00023835,4]
[346004812,1734619859434,-500.0,0.00023835,4]
[346004813,1734619859444,-2714.35,0.00023835,4]
[346004814,1734619859455,-500.0,0.00023835,4]
[346004815,1734619859464,-1379.44,0.00023835,4]
[346004816,1734619859475,-500.0,0.00023835,4]
[346004817,1734619859486,-500.0,0.00023835,4]
[346004818,1734619859496,-500.0,0.00023835,4]
[346004819,1734619859505,-753.13,0.00023835,4]
[346004820,1734619859515,-500.0,0.00023835,4]
[346004821,1734619859527,-500.0,0.00023835,4]
[346004822,1734619859539,-500.0,0.00023835,4]
[346004823,1734619859548,-1073.6,0.00023835,4]
[346004824,1734619859558,-1094.17,0.00023835,4]
[346004825,1734619859568,-1087.63,0.00023835,4]
[346004826,1734619859577,-500.0,0.00023835,4]
[346004827,1734619859587,-1456.56,0.00023835,4]
[346004828,1734619859596,-594.1,0.00023835,4]
[346004829,1734619859606,-500.0,0.00023835,4]
[346004830,1734619859616,-500.0,0.00023835,4]
[346004831,1734619859625,-500.0,0.00023835,4]
[346004832,1734619859635,-238.76,0.00023835,4]
[346004833,1734619859644,-500.0,0.00023835,4]
[346004834,1734619859653,-581.11,0.00023835,4]
[346004835,1734619859663,-500.0,0.00023835,4]
[346004836,1734619859673,-500.0,0.00023835,4]
[346004837,1734619859683,-2776.06,0.00023835,4]
[346004838,1734619859692,-327.18,0.00023835,4]
[346004839,1734619859702,-545.99,0.00023835,4]
[346004840,1734619859711,-1708.04,0.00023835,4]
[346004841,1734619859721,-500.0,0.00023835,4]
[346004842,1734619859730,-500.0,0.00023835,4]
[346004843,1734619859740,-500.0,0.00023835,4]
[346004844,1734619859749,-1364.7,0.00023835,4]
[346004845,1734619859759,-500.0,0.00023835,4]
[346004846,1734619859769,-655.37,0.00023835,4]
[346004847,1734619859780,-500.0,0.00023835,4]
[346004848,1734619859793,-1161.39,0.00023835,4]
[346004849,1734619859803,-500.0,0.00023835,4]
[346004850,1734619859813,-516.6,0.00023835,4]
[346004851,1734619859823,-500.0,0.00023835,4]
[346004852,1734619859833,-556.79,0.00023835,4]
[346004853,1734619859843,-500.0,0.00023835,4]
[346004854,1734619859853,-150.73032653,0.00023836,2]
[346004855,1734619859862,-150.0,0.00023837,2]
[346004856,1734619859872,-341.58875667,0.00023837,5]
[346004857,1734619859881,-150.0,0.00023838,2]
[346004858,1734619859891,-150.0,0.00023839,2]
[346004859,1734619859900,-150.0,0.00023841,2]
[346004860,1734619859909,-150.0,0.00023842,2]
[346004861,1734619859919,-341.58875667,0.00023842,5]
[346004862,1734619859928,-150.0,0.00023845,2]
[346004863,1734619859937,-150.0,0.00023845,2]
[346004864,1734619859947,-1795.40533981,0.00023847,5]
[346004865,1734619859956,-1795.40533981,0.00023849,5]
[346004866,1734619859965,-341.58875667,0.00023849,5]
[346004867,1734619859974,-150.0,0.0002385,2]
[346004868,1734619859984,-668.89,0.0002385,2]
[346004869,1734619859994,-150.0,0.00023851,2]
[346004870,1734619860003,-150.0,0.00023852,2]
[346004871,1734619860013,-150.0,0.00023853,2]
[346004872,1734619860022,-150.0,0.00023857,2]
[346004873,1734619860034,-150.0,0.00023857,2]
[346004874,1734619860044,-150.0,0.00023857,2]
[346004875,1734619860054,-1795.40533981,0.00023859,5]
[346004876,1734619860064,-150.0,0.0002386,2]
[346004877,1734619860074,-150.0,0.00023862,2]
[346004878,1734619860084,-150.0,0.00023863,2]
[346004879,1734619860094,-150.0,0.00023867,2]
[346004880,1734619860103,-150.0,0.00023871,2]
[346004881,1734619860113,-150.0,0.00023874,2]
[346004882,1734619860123,-150.0,0.00023875,2]
[346004883,1734619860132,-1795.40533981,0.00023877,5]
[346004884,1734619860142,-150.0,0.00023879,2]
[346004885,1734619860152,-150.0,0.0002388,2]
[346004886,1734619860161,-150.0,0.0002388,2]
[346004887,1734619860171,-150.0,0.00023881,4]
[346004888,1734619860181,-150.0,0.00023881,4]
[346004889,1734619860191,-341.58875667,0.00023882,5]
[346004890,1734619860200,-150.0,0.00023885,2]
[346004891,1734619860209,-1795.40533981,0.0002389,5]
[346004892,1734619860219,-150.0,0.0002389,2]
[346004893,1734619860229,-162.55681607,0.0002389,2]
[346004894,1734619860239,-1795.40533981,0.00023894,5]
[346004895,1734619860249,-150.0,0.00023897,2]
[346004896,1734619860260,-150.0,0.00023898,2]
[346004897,1734619860269,-2200.0,0.000239,8]
[346004898,1734619860280,-150.0,0.00023903,2]
[346004899,1734619860293,-150.0,0.00023904,2]
[346004900,1734619860302,-150.0,0.00023905,2]
[346004901,1734619860312,-150.0,0.00023906,2]
[346004902,1734619860322,-150.0,0.0002391,2]
[346004903,1734619860331,-500.0,0.00023915,2]
[346004904,1734619860341,-150.0,0.00023917,2]
[346004905,1734619860351,-150.0,0.00023919,2]
[346004906,1734619860360,-150.0,0.0002392,2]
[346004907,1734619860370,-150.0,0.00023921,2]
[346004908,1734619860380,-150.0,0.00023922,2]
[346004909,1734619860390,-150.0,0.00023924,2]
[346004910,1734619860400,-150.0,0.00023925,2]
[346004911,1734619860410,-150.0,0.00023926,2]
[346004912,1734619860420,-150.0,0.00023931,2]
[346004913,1734619860430,-150.0,0.00023933,2]
[346004914,1734619860444,-150.0,0.00023934,2]
[346004915,1734619860463,-150.0,0.00023934,2]
[346004916,1734619860473,-150.0,0.00023935,2]
[346004917,1734619860484,-150.0,0.0002394,2]
[346004918,1734619860495,-150.0,0.00023943,2]
[346004919,1734619860505,-150.0,0.00023948,2]
[346004920,1734619860515,-150.0,0.00023949,2]
[346004921,1734619860525,-150.0,0.00023952,2]
[346004922,1734619860536,-150.0,0.00023952,2]
[346004923,1734619860546,-150.0,0.00023957,2]
[346004924,1734619860556,-1980.07,0.00023962,7]
[346004925,1734619860566,-1980.07,0.00023962,7]
[346004926,1734619860576,-150.0,0.00023969,2]
[346004927,1734619860585,-150.73032653,0.00023973,2]
[346004928,1734619860595,-500.44414763,0.00023973,2]
[346004929,1734619860605,-500.0,0.00023973,2]
[346004930,1734619860616,-500.0,0.00023973,2]
[346004931,1734619860626,-150.0,0.00023974,2]
[346004932,1734619860636,-150.0,0.00023977,2]
[346004933,1734619860646,-150.0,0.00023977,2]
[346004934,1734619860655,-150.0,0.00023979,2]
[346004935,1734619860665,-9756.18332665,0.0002398,2]
[346004936,1734619860675,-150.0,0.00023982,2]
[346004937,1734619860685,-150.0,0.00023984,2]
[346004938,1734619860695,-150.0,0.00023987,2]
[346004939,1734619860705,-150.0,0.00023991,2]
[346004940,1734619860715,-150.0,0.00023992,2]
[346004941,1734619860725,-150.0,0.00023993,2]
[346004942,1734619860735,-150.0,0.00023995,2]
[346004943,1734619860745,-150.0,0.00023996,2]
[346004944,1734619860755,-150.0,0.00023999,2]
[346004945,1734619860764,-279657.0,0.00024,2]
[346004946,1734619860774,-10000.0,0.00024,2]
[346004947,1734619860785,-1000.0,0.00024,2]
[346004948,1734619860796,-150.0,0.00024001,2]
[346004949,1734619860806,-503.54,0.00024012,2]
[346004950,1734619860816,-150.0,0.00024012,2]
[346004951,1734619860826,-150.0,0.00024013,2]
[346004952,1734619860837,-150.0,0.00024013,2]
[346004953,1734619860847,-150.0,0.00024014,2]
[346004954,1734619860857,-150.0,0.00024016,2]
[346004955,1734619860867,-150.0,0.00024018,2]
[346004956,1734619860877,-150.0,0.00024018,2]
[346004957,1734619860887,-150.0,0.00024018,2]
[346004958,1734619860896,-100000.0,0.0002402,2]
[346004959,1734619860907,-150.0,0.00024027,2]
[346004960,1734619860917,-150.0,0.00024028,2]
[346004961,1734619860927,-150.0,0.00024028,2]
[346004962,1734619860937,-150.0,0.00024033,2]
[346004963,1734619860946,-150.0,0.00024034,2]
[346004964,1734619860956,-150.0,0.00024038,2]
[346004965,1734619860966,-150.0,0.00024038,2]
[346004966,1734619860975,-150.0,0.00024039,2]
[346004967,1734619860985,-150.0,0.00024041,2]
[346004968,1734619860995,-150.0,0.00024047,2]
[346004969,1734619861004,-1431.76,0.00024048,2]
[346004970,1734619861015,-150.0,0.00024054,2]
[346004971,1734619861025,-150.0,0.00024057,2]
[346004972,1734619861038,-19822.80890349,0.00024059,2]
[346004973,1734619861050,-150.0,0.0002406,2]
[346004974,1734619861060,-150.0,0.00024062,2]
[346004975,1734619861069,-150.0,0.00024064,2]
[346004976,1734619861079,-150.0,0.0002407,2]
[346004977,1734619861089,-624.34,0.00024079,2]
[346004978,1734619861099,-150.0,0.00024079,2]
[346004979,1734619861108,-150.0,0.00024085,4]
[346004980,1734619861118,-150.0,0.00024085,2]
[346004981,1734619861128,-4490.97,0.00024087,2]
[346004982,1734619861138,-1000.0,0.000241,2]
[346004983,1734619861148,-500.0,0.00024108,2]
[346004984,1734619861157,-500.0,0.00024109,4]
[346004985,1734619861167,-499.08068934,0.00024109,4]
[346004986,1734619861177,-500.0,0.00024109,4]
[346004987,1734619861187,-500.0,0.00024109,4]
[346004988,1734619861196,-480.67,0.00024109,4]
[346004989,1734619861206,-500.0,0.00024109,4]
[346004990,1734619861215,-419.23912589,0.00024109,4]
[346004991,1734619861225,-500.0,0.00024109,4]
[346004992,1734619861234,-500.0,0.00024109,4]
[346004993,1734619861243,-500.0,0.00024109,4]
[346004994,1734619861253,-500.0,0.00024109,4]
[346004995,1734619861262,-500.0,0.00024109,4]
[346004996,1734619861272,-500.0,0.00024109,4]
[346004997,1734619861281,-500.0,0.00024109,4]
[346004998,1734619861298,-500.0,0.00024109,4]
[346004999,1734619861308,-568.48,0.00024109,4]
[346005000,1734619861318,-500.0,0.00024109,4]
[346005001,1734619861329,-642.71,0.00024109,4]
[346005002,1734619861339,-533.56,0.00024109,4]
[346005003,1734619861348,-500.0,0.00024109,4]
[346005004,1734619861358,-722.07,0.00024109,4]
[346005005,1734619861368,-500.0,0.00024109,4]
[346005006,1734619861377,-508.2,0.00024109,4]
[346005007,1734619861387,-500.0,0.00024109,4]
[346005008,1734619861397,-500.0,0.00024109,4]
[346005009,1734619861407,-500.0,0.00024109,4]
[346005010,1734619861416,-500.0,0.00024109,4]
[346005011,1734619861425,-744.53,0.00024109,4]
[346005012,1734619861436,-500.0,0.00024109,4]
[346005013,1734619861447,-541.49564654,0.00024109,4]
[346005014,1734619861456,-500.0,0.00024109,4]
[346005015,1734619861466,-500.0,0.00024109,4]
[346005016,1734619861476,-868.35,0.00024109,4]
[346005017,1734619861487,-500.0,0.00024109,4]
[346005018,1734619861641,-500.0,0.00024109,4]
[346005019,1734619861652,-500.0,0.00024109,4]
[346005020,1734619861662,-554.96,0.00024109,4]
[346005021,1734619861672,-500.0,0.00024109,4]
[346005022,1734619861683,-783.95,0.00024109,4]
[346005023,1734619861693,-500.0,0.00024109,4]
[346005024,1734619861703,-500.0,0.00024109,4]
[346005025,1734619861713,-500.0,0.00024109,4]
[346005026,1734619861724,-527.81,0.00024109,4]
[346005027,1734619861734,-235.14705725,0.00024109,4]
[346005028,1734619861743,-500.0,0.00024109,4]
[346005029,1734619861754,-500.0,0.00024109,4]
[346005030,1734619861764,-500.0,0.00024109,4]
[346005031,1734619861774,-500.0,0.00024109,4]
[346005032,1734619861783,-500.0,0.00024109,4]
[346005033,1734619861795,-500.0,0.00024109,4]
[346005034,1734619861806,-500.0,0.00024109,4]
[346005035,1734619861816,-500.0,0.00024109,4]
[346005036,1734619861825,-500.0,0.00024109,4]
[346005037,1734619861836,-687.78,0.00024109,4]
[346005038,1734619861846,-500.0,0.00024109,4]
[346005039,1734619861855,-500.0,0.00024109,4]
[346005040,1734619861865,-592.2710026,0.00024109,4]
[346005041,1734619861875,-533.38,0.00024109,4]
[346005042,1734619861884,-500.0,0.00024109,4]
[346005043,1734619861894,-500.0,0.00024109,4]
[346005044,1734619861903,-500.0,0.00024109,4]
[346005045,1734619861913,-500.0,0.00024109,4]
[346005046,1734619861923,-500.0,0.00024109,4]
[346005047,1734619861932,-500.0,0.00024109,4]
[346005048,1734619861942,-500.0,0.00024109,4]
[346005049,1734619861952,-500.0,0.00024109,4]
[346005050,1734619861961,-500.0,0.00024109,4]
[346005051,1734619861971,-500.0,0.00024109,4]
[346005052,1734619861982,-1110.6,0.00024109,4]
[346005053,1734619861991,-500.0,0.00024109,4]
[346005054,1734619862002,-500.0,0.00024109,4]
[346005055,1734619862012,-500.0,0.00024109,4]
[346005056,1734619862021,-620.85,0.00024109,4]
[346005057,1734619862031,-781.0,0.00024109,4]
[346005058,1734619862044,-941.86,0.00024109,4]
[346005059,1734619862054,-857.05,0.00024109,4]
[346005060,1734619862064,-572.08394609,0.00024109,4]
[346005061,1734619862075,-500.0,0.00024109,4]
[346005062,1734619862085,-749.03,0.00024109,4]
[346005063,1734619862095,-1379.54,0.00024109,4]
[346005064,1734619862105,-582.13,0.00024109,4]
[346005065,1734619862115,-575.05518226,0.00024109,4]
[346005066,1734619862124,-664.17,0.00024109,4]
[346005067,1734619862134,-263.69,0.00024109,4]
[346005068,1734619862144,-1288.35,0.00024109,4]
[346005069,1734619862153,-500.0,0.00024109,4]
[346005070,1734619862163,-712.26,0.00024109,4]
[346005071,1734619862172,-500.0,0.00024109,4]
[346005072,1734619862182,-500.0,0.00024109,4]
[346005073,1734619862191,-500.0,0.00024109,4]
[346005074,1734619862200,-500.0,0.00024109,4]
[346005075,1734619862210,-500.0,0.00024109,4]
[346005076,1734619862219,-1155.02,0.00024109,4]
[346005077,1734619862230,-526.64,0.00024109,4]
[346005078,1734619862240,-692.32,0.00024109,4]
[346005079,1734619862251,-1941.22,0.00024109,4]
[346005080,1734619862261,-1443.45,0.00024109,4]
[346005081,1734619862270,-500.0,0.00024109,4]
[346005082,1734619862281,-500.0,0.00024109,4]
[346005083,1734619862294,-4671.05,0.00024109,4]
[346005084,1734619862303,-666.18,0.00024109,4]
[346005085,1734619862312,-500.0,0.00024109,4]
[346005086,1734619862322,-500.0,0.00024109,4]
[346005087,1734619862331,-492.99,0.00024109,4]
[346005088,1734619862342,-500.0,0.00024109,4]
[346005089,1734619862352,-507.17,0.00024109,4]
[346005090,1734619862362,-500.0,0.00024109,4]
[346005091,1734619862371,-500.0,0.00024109,4]
[346005092,1734619862381,-500.0,0.00024109,4]
[346005093,1734619862391,-500.0,0.00024109,4]
[346005094,1734619862402,-150.0,0.00024109,4]
[346005095,1734619862413,-783.0,0.00024109,4]
[346005096,1734619862422,-638.36,0.00024109,4]
[346005097,1734619862432,-363.52981946,0.00024109,4]
[346005098,1734619862445,-500.0,0.00024109,4]
[346005099,1734619862456,-613.45,0.00024109,4]
[346005100,1734619862465,-500.0,0.00024109,4]
[346005101,1734619862475,-500.0,0.00024109,4]
[346005102,1734619862486,-2110.0,0.00024109,2]
[346005103,1734619862497,-583.42,0.00024109,4]
[346005104,1734619862507,-500.0,0.00024109,4]
[346005105,1734619862517,-1342.63,0.00024109,4]
[346005106,1734619862527,-925.35,0.00024109,4]
[346005107,1734619862541,-481.48244873,0.00024109,4]
[346005108,1734619862551,-552.75,0.00024109,4]
[346005109,1734619862562,-500.0,0.00024109,4]
[346005110,1734619862572,-592.13,0.00024109,4]
[346005111,1734619862582,-500.0,0.00024109,4]
[346005112,1734619862591,-2339.55,0.00024109,4]
[346005113,1734619862602,-500.0,0.00024109,4]
[346005114,1734619862613,-500.0,0.00024109,4]
[346005115,1734619862623,-1038.07,0.00024109,4]
[346005116,1734619862632,-1573.39,0.00024109,4]
[346005117,1734619862642,-500.0,0.00024109,4]
[346005118,1734619862652,-500.0,0.00024109,4]
[346005119,1734619862661,-500.0,0.00024109,4]
[346005120,1734619862671,-500.0,0.00024109,4]
[346005121,1734619862681,-965.55,0.00024109,4]
[346005122,1734619862690,-1681.79,0.00024109,4]
[346005123,1734619862699,-500.0,0.00024109,4]
[346005124,1734619862709,-1067.32,0.00024109,4]
[346005125,1734619862718,-1437.18,0.00024109,4]
[346005126,1734619862728,-500.0,0.00024109,4]
[346005127,1734619862738,-2714.35,0.00024109,4]
[346005128,1734619862748,-500.0,0.00024109,4]
[346005129,1734619862758,-1379.44,0.00024109,4]
[346005130,1734619862768,-500.0,0.00024109,4]
[346005131,1734619862778,-500.0,0.00024109,4]
[346005132,1734619862792,-500.0,0.00024109,4]
[346005133,1734619862802,-753.13,0.00024109,4]
[346005134,1734619862813,-500.0,0.00024109,4]
[346005135,1734619862823,-500.0,0.00024109,4]
[346005136,1734619862832,-500.0,0.00024109,4]
[346005137,1734619862842,-1073.6,0.00024109,4]
[346005138,1734619862852,-1094.17,0.00024109,4]
[346005139,1734619862862,-1087.63,0.00024109,4]
[346005140,1734619862872,-500.0,0.00024109,4]
[346005141,1734619862882,-1456.56,0.00024109,4]
[346005142,1734619862892,-594.1,0.00024109,4]
[346005143,1734619862902,-500.0,0.00024109,4]
[346005144,1734619862911,-500.0,0.00024109,4]
[346005145,1734619862921,-500.0,0.00024109,4]
[346005146,1734619862931,-500.0,0.00024109,4]
[346005147,1734619862941,-581.11,0.00024109,4]
[346005148,1734619862951,-500.0,0.00024109,4]
[346005149,1734619862961,-500.0,0.00024109,4]
[346005150,1734619862971,-2776.06,0.00024109,4]
[346005151,1734619862982,-545.99,0.00024109,4]
[346005152,1734619862991,-1708.04,0.00024109,4]
[346005153,1734619863002,-500.0,0.00024109,4]
[346005154,1734619863011,-500.0,0.00024109,4]
[346005155,1734619863021,-500.0,0.00024109,4]
[346005156,1734619863031,-1364.7,0.00024109,4]
[346005157,1734619863047,-500.0,0.00024109,4]
[346005158,1734619863058,-655.37,0.00024109,4]
[346005159,1734619863069,-1161.39,0.00024109,4]
[346005160,1734619863080,-500.0,0.00024109,4]
[346005161,1734619863091,-516.6,0.00024109,4]
[346005162,1734619863100,-500.0,0.00024109,4]
[346005163,1734619863112,-556.79,0.00024109,4]
[346005164,1734619863123,-500.0,0.00024109,4]
[346005165,1734619863134,-150.73032653,0.0002411,2]
[346005166,1734619863145,-599.7574576,0.00024114,2]
[346005167,1734619863155,-806.47755995,0.0002413,2]
[346005168,1734619863165,-287.7876762,0.00024146,2]
[346005169,1734619863179,-209.0,0.0002415,2]
[346005170,1734619863189,-1000.0,0.0002415,10]
[346005171,1734619863201,-209.0,0.0002415,2]
[346005172,1734619863212,-162.55681607,0.00024192,2]
[346005173,1734619863222,-154.61,0.00024192,2]